bitfinex-derivatives/quotes_ETHF0:USTF0_20250830
["timestamp","ask_amount","ask_price","bid_price","bid_amount"]
[1756563340656,0.5108,4346.3,4346.2,0.233]
[1756563343547,0.206,4346.3,4345.9,5.308]
[1756563343753,0.206,4346.1,4346.0,0.233]
[1756563343956,0.4997,4346.1,4346.0,0.233]
[1756563344456,0.4997,4346.0,4345.9,5.308]
[1756563344657,0.4997,4346.0,4345.9,5.541]
[1756563346851,0.4997,4346.0,4345.9,0.233]
[1756563351558,0.2937,4345.9,4344.6,36.3548]
[1756563351761,0.4997,4344.7,4344.1,0.10588953]
[1756563351957,0.4997,4344.7,4344.2,0.233]
[1756563353558,0.115,4344.6,4344.2,0.233]
[1756563353759,0.4997,4344.3,4344.2,0.233]
[1756563355359,0.4997,4344.3,4344.1,0.10588953]
[1756563355866,0.4997,4344.3,4343.5,3.2078]
[1756563355867,0.4997,4343.6,4343.5,3.2078]
[1756563356966,0.4997,4343.6,4343.4,0.233]
[1756563357960,0.4997,4343.6,4342.5,3.2078]
[1756563357961,0.206,4343.1,4342.5,3.2078]
[1756563358163,3.2078,4343.3,4342.0,3.2078]
[1756563358471,3.2078,4343.3,4342.1,41.033]
[1756563358770,0.2937,4343.1,4342.1,41.033]
[1756563358970,3.2078,4343.3,4342.1,41.033]
[1756563359171,0.2937,4343.2,4342.1,41.033]
[1756563359672,0.4997,4343.1,4342.2,0.23027]
[1756563360066,0.4997,4343.1,4342.5,3.2078]
[1756563360273,0.4997,4342.7,4342.6,0.234]
[1756563360973,0.2937,4343.8,4342.6,0.234]
[1756563362471,3.2078,4343.9,4342.8,0.41442]
[1756563362677,0.4997,4343.8,4342.9,0.234]
[1756563364079,0.2937,4343.7,4343.0,40.8]
[1756563364279,0.4997,4343.1,4343.0,40.8]
[1756563365178,0.206,4343.1,4343.0,0.234]
[1756563365578,0.206,4343.1,4342.6,0.234]
[1756563365776,0.4997,4342.7,4342.6,0.234]
[1756563367275,0.1923,4342.1,4342.0,3.2078]
[1756563367476,0.4982,4342.1,4342.0,3.4418]
[1756563367878,0.4982,4342.1,4342.0,44.2418]
[1756563368282,0.4982,4342.1,4342.0,0.234]
[1756563368472,3.2078,4342.4,4341.5,3.2078]
[1756563368473,0.1923,4341.6,4341.5,3.4418]
[1756563368875,0.4982,4341.6,4341.5,3.4418]
[1756563369579,3.2078,4342.4,4341.5,3.4418]
[1756563369580,0.4982,4342.3,4341.5,3.4418]
[1756563369777,0.4982,4342.3,4341.6,40.8]
[1756563370378,0.3059,4342.2,4341.6,40.8]
[1756563371890,3.2078,4342.4,4341.6,40.8]
[1756563372184,3.2078,4342.4,4341.7,0.41452]
[1756563372379,3.2078,4342.4,4341.8,0.234]
[1756563373183,3.4001,4342.4,4341.8,0.234]
[1756563373386,0.1923,4342.3,4341.8,0.234]
[1756563373588,0.4982,4342.3,4341.8,0.234]
[1756563373975,0.3059,4342.2,4341.8,0.234]
[1756563374282,3.4001,4342.4,4341.8,0.234]
[1756563374584,0.1923,4342.2,4341.8,0.234]
[1756563374785,0.4982,4342.2,4341.8,0.234]
[1756563375084,0.1923,4342.1,4341.8,0.234]
[1756563375387,0.3059,4341.7,4341.5,3.24788526]
[1756563375582,0.4982,4341.6,4341.5,3.24788526]
[1756563375782,0.4982,4341.6,4341.5,3.48188526]
[1756563376185,0.4982,4341.6,4341.5,44.28188526]
[1756563376983,0.4982,4341.6,4341.5,44.2418]
[1756563377680,0.3059,4341.5,4341.3,33.149]
[1756563377883,0.4982,4341.4,4341.3,33.149]
[1756563378194,0.4982,4341.4,4341.3,0.234]
[1756563379292,3.706,4341.4,4341.3,0.234]
[1756563379790,3.706,4341.4,4340.6,40.8]
[1756563379791,0.1923,4340.6,4340.0,5.0]
[1756563379985,0.3059,4341.3,4340.1,0.234]
[1756563380280,0.3059,4341.3,4340.3,3.2078]
[1756563380485,0.3059,4341.3,4340.4,0.234]
[1756563380882,0.1923,4340.5,4340.4,3.4418]
[1756563381088,0.4982,4340.5,4340.4,0.234]
[1756563382293,3.4001,4340.9,4340.4,0.234]
[1756563382488,0.3059,4340.7,4340.4,0.234]
[1756563382694,0.3059,4340.6,4340.4,0.234]
[1756563382994,0.4982,4340.5,4340.4,0.234]
[1756563383883,0.3059,4340.5,4340.4,0.234]
[1756563384093,0.4982,4340.8,4340.4,0.234]
[1756563384292,0.3059,4340.7,4340.4,0.234]
[1756563384687,0.1923,4340.7,4340.4,0.234]
[1756563384988,0.4982,4340.5,4340.4,0.234]
[1756563385390,0.4982,4340.5,4340.3,3.2078]
[1756563385696,0.3059,4340.8,4340.4,0.234]
[1756563385885,0.1923,4340.5,4340.4,0.234]
[1756563386088,0.3059,4340.4,4340.1,40.8]
[1756563386284,0.4982,4340.2,4340.1,40.8]
[1756563386483,0.4982,4340.2,4340.1,41.034]
[1756563386890,0.4982,4340.2,4340.1,0.234]
[1756563387690,0.1923,4340.2,4340.1,0.234]
[1756563388295,0.4982,4340.1,4340.0,5.234]
[1756563389493,0.4982,4340.1,4340.0,5.0]
[1756563390896,4.4982,4340.1,4340.0,5.0]
[1756563391698,4.4982,4340.1,4340.0,4.6875]
[1756563391903,4.4982,4340.1,4340.0,4.375]
[1756563392289,0.7322,4340.1,4340.0,4.5681]
[1756563392497,0.7322,4340.1,4340.0,4.375]
[1756563392802,0.4982,4340.1,4340.0,4.5681]
[1756563392993,0.4982,4340.1,4340.0,4.8658]
[1756563393894,0.4982,4340.9,4340.8,0.1931]
[1756563394095,0.4982,4340.9,4340.8,0.4908]
[1756563394299,0.4982,4340.9,4340.2,0.235]
[1756563394595,0.4982,4340.4,4340.3,0.4908]
[1756563394792,3.2078,4340.7,4340.4,0.2977]
[1756563394793,3.5137,4340.7,4340.4,0.2977]
[1756563395096,1.64096868,4343.1,4340.3,0.1931]
[1756563395097,3.2078,4341.2,4340.6,0.1931]
[1756563395295,3.2078,4341.2,4341.1,0.4908]
[1756563395498,3.2078,4341.2,4341.1,0.7258]
[1756563395499,3.4001,4341.2,4341.1,0.7258]
[1756563395695,3.706,4341.2,4341.1,0.7258]
[1756563395896,3.706,4341.2,4341.1,0.4281]
[1756563396097,3.4001,4341.2,4341.1,0.7258]
[1756563396696,0.3059,4341.1,4340.9,0.4281]
[1756563396894,0.4982,4341.0,4340.9,0.4281]
[1756563397694,0.4982,4341.0,4340.9,0.1931]
[1756563397899,0.4982,4341.0,4340.8,0.235]
[1756563398503,0.1923,4341.0,4340.9,0.4862]
[1756563400102,3.2078,4341.2,4341.0,0.2947]
[1756563400405,3.2078,4341.2,4341.1,0.7212]
[1756563401606,0.1151,4341.4,4341.3,0.90077]
[1756563401906,0.1151,4341.4,4341.3,4.10857]
[1756563402301,0.1151,4341.4,4341.3,8.33891]
[1756563402508,0.1151,4341.4,4341.3,4.10857]
[1756563403399,0.1151,4341.4,4341.3,8.10857]
[1756563403598,0.1151,4341.4,4341.3,48.90857]
[1756563403804,0.6283,4341.4,4341.3,0.4862]
[1756563404004,0.6283,4341.4,4341.3,0.235]
[1756563404410,0.6283,4341.4,4341.1,0.235]
[1756563404711,0.3213,4341.4,4341.3,0.1915]
[1756563404901,0.1151,4341.4,4341.3,0.4862]
[1756563407204,3.2078,4341.7,4341.3,0.1915]
[1756563407404,3.2078,4341.7,4341.6,0.4862]
[1756563407405,3.721,4341.7,4341.6,0.4862]
[1756563407606,3.721,4341.7,4341.6,0.7212]
[1756563408510,3.2078,4341.7,4341.6,0.7212]
[1756563409013,0.1151,4341.9,4341.7,0.2947]
[1756563409208,0.1151,4341.9,4341.8,0.1915]
[1756563409411,0.1151,4341.9,4341.8,0.4862]
[1756563416220,0.3213,4341.9,4341.8,0.4862]
[1756563416419,0.6283,4341.9,4341.8,0.4862]
[1756563417118,0.5132,4341.7,4341.6,3.2078]
[1756563417314,0.5132,4341.7,4341.6,3.929]
[1756563421021,0.1151,4341.9,4341.6,3.929]
[1756563421213,0.1151,4341.9,4341.8,0.4862]
[1756563421524,3.721,4342.9,4342.8,0.4862]
[1756563421722,3.721,4342.9,4342.8,0.4265]
[1756563422026,3.721,4342.9,4342.8,41.2265]
[1756563422223,3.414,4342.9,4342.8,0.1915]
[1756563422425,3.414,4342.9,4342.8,0.4265]
[1756563422626,3.414,4342.9,4342.8,0.7212]
[1756563423933,3.721,4342.9,4342.8,0.7212]
[1756563424227,3.721,4342.9,4342.8,0.235]
[1756563424620,3.2078,4342.9,4342.8,0.7212]
[1756563426616,0.307,4343.4,4342.9,0.2947]
[1756563426825,0.5132,4343.0,4342.9,0.1915]
[1756563427029,0.2055,4342.0,4341.9,3.701]
[1756563427229,0.4917,4342.0,4341.9,3.6413]
[1756563427932,0.4917,4342.0,4341.9,0.4335]
[1756563428736,0.2055,4341.8,4341.7,40.8]
[1756563429030,0.4917,4341.8,4341.7,41.035]
[1756563430128,0.4917,4341.8,4341.7,0.235]
[1756563430330,0.4917,4341.8,4341.7,0.4335]
[1756563430524,0.4917,4341.8,4341.7,0.7416]
[1756563430727,0.2862,4342.4,4341.7,0.7416]
[1756563430932,0.2055,4342.4,4341.9,0.3081]
[1756563431230,0.2055,4342.1,4341.6,40.8]
[1756563431438,0.35,4343.5,4341.7,0.7416]
[1756563431439,0.2055,4341.8,4341.7,0.7416]
[1756563431632,0.4917,4341.8,4341.7,0.7416]
[1756563431939,0.4917,4341.8,4341.7,0.235]
[1756563433338,0.4917,4341.8,4341.7,0.4335]
[1756563433634,0.2055,4341.8,4341.7,0.7416]
[1756563433829,0.4917,4341.8,4341.7,0.7416]
[1756563434734,0.4917,4341.8,4341.7,0.4335]
[1756563435129,0.4917,4341.8,4341.7,0.7416]
[1756563436033,0.4917,4341.8,4341.7,0.4335]
[1756563436239,0.2862,4342.4,4341.7,0.4335]
[1756563436434,0.4917,4342.4,4342.3,0.1985]
[1756563436635,0.4917,4342.4,4342.3,0.7416]
[1756563436830,0.2055,4341.6,4341.5,40.8]
[1756563437036,0.2055,4341.6,4341.2,3.2078]
[1756563437037,0.2055,4341.4,4341.3,0.235]
[1756563437334,0.4917,4341.4,4341.3,0.7416]
[1756563437539,0.2862,4342.4,4341.4,0.3081]
[1756563437835,0.51651001,4342.4,4341.4,0.3081]
[1756563438042,0.4917,4342.4,4342.3,0.5066]
[1756563438235,3.2078,4342.5,4342.4,0.3081]
[1756563438535,0.115,4343.5,4342.3,0.4335]
[1756563438536,3.2078,4343.0,4342.9,0.1985]
[1756563438738,0.2862,4343.3,4343.2,0.1985]
[1756563439038,0.2862,4343.3,4343.2,0.7416]
[1756563439237,0.4917,4343.3,4343.2,0.7416]
[1756563439536,0.4917,4343.3,4341.7,3.5159]
[1756563439537,0.4917,4342.2,4341.7,3.5159]
[1756563439737,0.4917,4341.8,4341.7,3.7144]
[1756563439935,0.4917,4341.8,4341.7,3.5159]
[1756563440236,0.4917,4341.8,4341.7,0.4335]
[1756563440442,0.4917,4341.8,4341.5,40.8]
[1756563440637,0.4917,4341.6,4341.5,40.8]
[1756563440935,0.4917,4341.6,4341.5,41.035]
[1756563441338,0.4917,4341.4,4341.3,33.173]
[1756563441531,0.4917,4341.4,4341.3,0.236]
[1756563442643,0.4917,4341.4,4340.5,3.2078]
[1756563442834,0.4012,4341.3,4340.6,0.5441]
[1756563443434,0.4012,4341.3,4340.6,0.236]
[1756563443640,0.6067,4341.3,4341.2,0.1985]
[1756563443841,0.4917,4341.3,4341.2,0.4345]
[1756563444940,0.4917,4341.3,4341.2,0.236]
[1756563445842,0.2862,4341.6,4341.3,0.3081]
[1756563446344,0.4917,4341.6,4341.5,0.5066]
[1756563446539,0.2862,4341.5,4341.2,41.3441]
[1756563446738,0.4917,4341.3,4341.2,41.036]
[1756563446945,0.4917,4341.3,4341.2,0.4345]
[1756563447344,0.4917,4341.3,4341.2,0.7426]
[1756563448940,0.115,4341.7,4341.2,0.4345]
[1756563449142,0.6067,4341.7,4341.6,0.1985]
[1756563449446,0.4917,4341.7,4341.2,0.5441]
[1756563449645,0.2055,4341.4,4341.3,0.5066]
[1756563449846,0.4917,4341.4,4341.3,0.5066]
[1756563451751,0.4917,4341.7,4341.6,0.5066]
[1756563452050,0.4917,4341.7,4341.6,0.7416]
[1756563454353,0.2055,4341.7,4341.6,0.7416]
[1756563454650,0.4917,4341.7,4341.6,0.7416]
[1756563457054,0.115,4341.8,4341.7,0.3081]
[1756563457258,0.115,4341.8,4341.7,0.5063]
[1756563457555,0.115,4341.8,4341.7,0.73662]
[1756563457754,0.115,4341.8,4341.7,0.5063]
[1756563458553,0.115,4341.8,4341.7,4.73662]
[1756563458748,3.2078,4342.9,4342.8,0.1982]
[1756563458953,3.7025,4342.9,4342.8,0.5038]
[1756563459656,3.2078,4342.9,4342.8,0.5038]
[1756563459858,0.2982,4343.3,4342.8,0.5038]
[1756563460152,0.4947,4343.3,4343.2,0.5038]
[1756563460357,3.2078,4343.4,4343.3,0.3056]
[1756563460551,3.7025,4343.4,4343.3,0.5038]
[1756563460752,7.4043,4343.4,4342.9,0.235]
[1756563460951,0.4947,4343.0,4342.9,0.235]
[1756563461152,0.4947,4343.0,4342.8,0.235]
[1756563461953,0.1965,4343.0,4342.8,0.235]
[1756563462158,0.4947,4342.9,4342.8,0.7388]
[1756563463360,0.4947,4342.9,4342.8,0.4332]
[1756563463551,0.1965,4342.9,4342.2,40.8]
[1756563463756,0.4947,4341.7,4341.6,0.1982]
[1756563463958,0.4947,4341.7,4341.6,0.4332]
[1756563464158,0.4947,4341.7,4341.6,0.235]
[1756563465262,0.4947,4341.7,4341.6,0.4332]
[1756563465463,0.4947,4341.7,4341.6,0.235]
[1756563467362,3.2078,4342.1,4341.6,0.7388]
[1756563467658,0.2982,4342.4,4342.3,0.1982]
[1756563467862,3.2078,4342.7,4342.4,0.3056]
[1756563468065,3.2078,4342.7,4342.6,0.5038]
[1756563468266,3.2078,4342.7,4342.6,41.3038]
[1756563469162,3.506,4342.7,4342.6,40.8]
[1756563469365,0.4947,4342.4,4342.3,0.235]
[1756563469762,0.4947,4342.4,4342.3,0.7388]
[1756563469963,0.4947,4342.4,4342.3,41.5388]
[1756563470359,0.4947,4342.4,4342.3,0.7388]
[1756563470561,0.4947,4342.4,4342.3,0.5038]
[1756563470865,0.4947,4342.4,4342.3,0.7388]
[1756563471565,3.506,4342.7,4342.4,0.3056]
[1756563471769,3.7025,4342.7,4342.6,0.5038]
[1756563472066,3.7025,4342.7,4342.3,0.235]
[1756563472268,0.1965,4342.4,4342.3,0.7388]
[1756563472570,0.4947,4342.4,4342.3,0.7388]
[1756563475263,0.1965,4342.4,4342.3,0.7388]
[1756563475873,3.506,4342.7,4342.4,0.3056]
[1756563476170,3.7025,4342.7,4342.6,0.5038]
[1756563477369,3.7025,4342.7,4342.6,0.1982]
[1756563481374,3.2078,4343.3,4342.6,0.5038]
[1756563481667,3.2078,4343.3,4342.2,3.2078]
[1756563481668,3.2078,4343.3,4343.1,0.5038]
[1756563481873,3.2078,4343.3,4343.2,0.7388]
[1756563482271,3.2078,4343.3,4343.2,41.5388]
[1756563482774,3.2078,4343.3,4343.2,41.035]
[1756563482775,3.506,4343.3,4343.2,41.035]
[1756563482975,3.506,4343.3,4343.2,40.8]
[1756563483271,3.506,4343.3,4343.2,41.035]
[1756563483872,3.7025,4343.3,4343.2,0.235]
[1756563484464,3.7025,4343.3,4342.4,3.2078]
[1756563484670,0.1965,4342.5,4342.2,33.17]
[1756563484968,0.4947,4342.4,4342.3,0.235]
[1756563487574,0.3052,4342.3,4342.2,73.97]
[1756563487769,0.3052,4342.3,4342.2,74.4892]
[1756563488678,0.3052,4343.2,4342.3,0.2842]
[1756563488978,0.5133,4342.4,4342.3,0.4846]
[1756563489867,0.2081,4342.4,4342.3,0.4846]
[1756563490072,0.5133,4343.2,4343.1,0.4846]
[1756563490273,0.5133,4343.2,4343.1,0.4354]
[1756563490578,0.5133,4343.2,4343.1,0.235]
[1756563491672,0.2081,4342.4,4342.3,0.2842]
[1756563491873,0.5133,4342.4,4342.3,0.7196]
[1756563492979,0.3052,4343.2,4342.3,0.4354]
[1756563493282,0.3052,4343.2,4342.4,0.2842]
[1756563493478,0.5133,4342.5,4342.4,0.4846]
[1756563494582,0.3052,4343.2,4342.5,0.2842]
[1756563494881,0.3052,4343.2,4342.6,0.235]
[1756563495081,0.5133,4342.8,4342.7,0.4846]
[1756563495278,0.5133,4342.8,4342.7,0.2004]
[1756563496578,3.2078,4343.3,4343.1,0.2004]
[1756563496579,0.3052,4343.2,4343.1,0.2004]
[1756563496786,0.5133,4343.2,4343.1,0.7196]
[1756563496981,0.5133,4343.2,4343.1,0.4354]
[1756563497881,8.915,4345.3,4343.1,0.4354]
[1756563497882,0.3052,4343.6,4343.2,0.2842]
[1756563498085,3.4159,4343.8,4343.1,0.5192]
[1756563498280,0.2081,4343.8,4343.1,0.5192]
[1756563498479,0.3052,4343.7,4343.2,40.8]
[1756563498674,0.5133,4343.3,4343.2,40.8]
[1756563498880,0.5133,4343.3,4343.2,41.0842]
[1756563503781,0.5133,4343.3,4343.2,40.8]
[1756563503982,0.5133,4343.3,4343.2,41.034]
[1756563504183,0.5133,4343.3,4343.2,0.234]
[1756563505187,0.2081,4342.5,4342.2,5.54563366]
[1756563505487,0.5133,4342.3,4342.2,3.6924]
[1756563505691,0.5133,4342.3,4342.2,44.7264]
[1756563510393,0.5133,4342.3,4342.2,41.5186]
[1756563511689,0.3052,4343.2,4342.3,0.2842]
[1756563511885,0.53547001,4343.2,4342.4,0.234]
[1756563512089,0.23027001,4343.1,4342.5,0.2842]
[1756563512390,3.2078,4343.3,4343.2,0.2004]
[1756563512593,3.513,4343.3,4343.2,0.7186]
[1756563512991,3.7211,4343.3,4343.2,0.7186]
[1756563513493,0.3052,4343.7,4343.3,0.2842]
[1756563513699,3.2078,4343.8,4343.7,0.4846]
[1756563513895,3.2078,4343.8,4343.7,0.7186]
[1756563514699,0.3052,4343.7,4343.3,41.0842]
[1756563514898,0.5133,4343.5,4343.4,0.7186]
[1756563516294,0.5133,4343.7,4343.6,0.4846]
[1756563516500,0.5133,4343.7,4343.6,0.7186]
[1756563517496,3.2078,4343.8,4343.7,0.3117]
[1756563517690,3.2078,4343.8,4343.7,0.5]
[1756563518095,3.2078,4344.3,4344.2,0.1883]
[1756563518302,3.7186,4344.3,4344.2,0.734]
[1756563518504,3.7186,4344.3,4344.2,0.4223]
[1756563518999,3.7186,4344.3,4344.2,0.734]
[1756563520705,3.2078,4344.3,4344.2,0.734]
[1756563521403,3.2078,4344.8,4344.2,0.4223]
[1756563521600,0.3085,4344.7,4344.3,0.1883]
[1756563521805,3.2078,4344.8,4344.7,0.3117]
[1756563522007,3.2078,4344.8,4344.7,0.734]
[1756563522206,3.2078,4344.8,4344.7,41.534]
[1756563522907,0.3085,4345.1,4344.7,41.534]
[1756563523109,0.5108,4344.9,4344.8,0.5]
[1756563524211,3.2078,4345.4,4344.8,4.41846]
[1756563524511,0.2023,4344.8,4344.7,40.8]
[1756563524707,0.5108,4344.8,4344.7,41.034]
[1756563525105,0.5108,4344.8,4344.7,41.3457]
[1756563525707,0.5108,4344.8,4344.2,0.3117]
[1756563526013,0.5108,4344.4,4344.3,0.234]
[1756563526910,0.5108,4344.4,4344.3,0.4223]
[1756563527107,3.2078,4344.9,4344.4,0.3117]
[1756563527406,3.4101,4344.9,4344.8,0.5]
[1756563527620,3.4101,4344.9,4344.8,0.4223]
[1756563527805,3.7186,4344.9,4344.8,0.4223]
[1756563528408,3.7186,4344.9,4344.8,0.234]
[1756563528609,3.7186,4344.9,4344.2,0.3117]
[1756563528812,3.7186,4344.9,4344.3,0.234]
[1756563530618,3.7186,4344.9,4344.4,0.3117]
[1756563530817,3.4101,4344.9,4344.8,0.5]
[1756563531018,3.4101,4344.9,4344.8,0.734]
[1756563531413,0.2023,4344.9,4344.8,0.734]
[1756563531718,0.5108,4344.9,4344.8,0.734]
[1756563534720,0.2023,4344.9,4344.8,0.734]
[1756563534922,3.2078,4345.6,4344.9,0.3117]
[1756563535218,0.3085,4345.5,4344.9,0.3117]
[1756563535422,0.5108,4345.5,4345.4,0.5]
[1756563535720,0.5108,4345.5,4345.4,0.234]
[1756563542424,0.5108,4344.7,4344.6,3.7078]
[1756563542627,0.5108,4344.7,4344.6,3.9418]
[1756563542926,0.5108,4344.7,4344.6,0.234]
[1756563545427,0.2023,4344.0,4343.8,2.05363366]
[1756563545632,0.5108,4343.8,4343.7,40.8]
[1756563545820,0.5108,4343.8,4343.7,41.3457]
[1756563546329,0.3085,4344.5,4343.7,41.034]
[1756563546633,0.5108,4344.5,4344.4,0.5]
[1756563546834,0.5108,4344.5,4344.4,0.734]
[1756563548333,0.2023,4344.5,4344.4,0.734]
[1756563548532,3.2078,4345.1,4344.4,0.4223]
[1756563548723,3.2078,4345.1,4344.5,0.3107]
[1756563548922,0.304,4345.0,4344.5,0.3107]
[1756563549127,0.2032,4344.6,4344.5,0.518]
[1756563549326,0.5072,4344.6,4344.5,0.518]
[1756563551432,0.5072,4344.6,4344.4,0.234]
[1756563551637,0.5072,4344.6,4343.7,40.8]
[1756563551638,0.5072,4343.4,4343.3,0.518]
[1756563551829,0.5072,4343.4,4343.3,0.752]
[1756563552136,0.5072,4343.4,4343.3,41.552]
[1756563552334,0.5072,4343.4,4343.3,41.2413]
[1756563552534,0.5072,4343.4,4343.3,0.4413]
[1756563552834,0.5072,4343.4,4343.3,0.752]
[1756563554436,0.5072,4343.4,4343.3,0.4413]
[1756563555236,0.5072,4343.4,4343.3,0.752]
[1756563555433,3.5118,4344.1,4343.4,0.3107]
[1756563555737,3.715,4344.1,4344.0,0.518]
[1756563555937,3.715,4344.1,4344.0,0.752]
[1756563556840,3.715,4344.1,4343.5,0.3107]
[1756563557338,3.715,4344.1,4343.6,0.234]
[1756563559636,0.304,4344.0,4343.3,40.8]
[1756563559840,0.5072,4343.4,4343.3,41.034]
[1756563560531,0.5072,4343.4,4343.3,0.4413]
[1756563560732,0.304,4343.3,4343.1,33.163]
[1756563560933,0.5072,4343.2,4343.1,33.163]
[1756563561133,0.5072,4343.2,4343.1,74.5077]
[1756563561329,0.5072,4343.1,4343.0,0.2073]
[1756563561638,0.5072,4343.1,4343.0,0.518]
[1756563562838,3.2078,4343.6,4342.0,3.2078]
[1756563563039,0.304,4343.4,4342.5,3.2078]
[1756563563229,0.304,4343.4,4342.7,0.3107]
[1756563563936,0.5072,4342.8,4342.7,0.518]
[1756563564834,3.2078,4343.6,4342.7,0.2073]
[1756563565035,0.304,4343.5,4342.8,0.3107]
[1756563565235,0.304,4343.5,4342.9,0.235]
[1756563565641,0.2032,4343.1,4343.0,0.518]
[1756563565842,0.5072,4343.1,4342.9,0.235]
[1756563568838,0.2032,4343.1,4342.9,0.235]
[1756563569040,0.5072,4343.0,4342.9,0.753]
[1756563569937,0.5072,4343.0,4342.9,0.4423]
[1756563570137,0.5072,4343.0,4342.9,0.235]
[1756563570338,0.5072,4343.0,4342.9,0.4423]
[1756563570535,0.5072,4343.0,4342.9,0.753]
[1756563570941,0.5072,4343.0,4342.9,0.4423]
[1756563571738,0.2032,4342.1,4342.0,3.4151]
[1756563571941,0.5072,4342.1,4342.0,3.6501]
[1756563572242,0.5072,4342.1,4342.0,44.4501]
[1756563572443,0.5072,4342.1,4342.0,44.7608]
[1756563572841,0.5072,4342.1,4342.0,3.9608]
[1756563573237,0.5072,4342.1,4342.0,3.2078]
[1756563573445,0.5072,4342.1,4342.0,0.235]
[1756563574038,0.2032,4342.1,4341.5,40.8]
[1756563574242,3.2078,4342.4,4341.6,0.235]
[1756563574243,0.304,4342.3,4341.6,0.235]
[1756563574439,0.5072,4341.7,4341.6,0.235]
[1756563574943,0.304,4341.6,4341.4,3.2078]
[1756563575244,0.5072,4341.6,4341.5,0.235]
[1756563575443,3.5118,4341.8,4341.6,0.3107]
[1756563575644,0.2032,4341.7,4341.6,0.518]
[1756563576041,0.5072,4341.7,4341.6,0.518]
[1756563576845,0.2032,4341.7,4341.6,0.518]
[1756563577340,0.4894,4341.7,4341.6,0.518]
[1756563579143,3.2078,4342.3,4341.6,0.518]
[1756563579455,3.2078,4342.3,4341.5,0.235]
[1756563579456,3.6882,4342.3,4342.2,0.5013]
[1756563579643,3.6882,4342.3,4342.2,0.7363]
[1756563580240,3.6882,4342.3,4342.2,0.235]
[1756563580544,0.4804,4341.2,4341.1,0.311]
[1756563580744,0.4804,4341.2,4341.1,0.235]
[1756563581344,0.4804,4341.2,4341.1,0.7363]
[1756563582448,0.2862,4341.7,4341.2,0.311]
[1756563582851,0.4804,4341.7,4341.6,0.1903]
[1756563583243,0.4804,4341.7,4341.6,0.5013]
[1756563583849,0.4804,4341.7,4341.6,0.1903]
[1756563584749,0.4804,4341.7,4341.6,0.5013]
[1756563586150,3.2078,4341.8,4341.7,0.311]
[1756563586353,3.2078,4341.8,4341.7,0.5013]
[1756563589657,3.2078,4341.8,4341.7,4.73162]
[1756563589959,3.2078,4342.9,4342.8,0.5013]
[1756563590258,3.2078,4342.9,4342.8,0.7363]
[1756563590452,3.6882,4342.9,4342.8,0.7363]
[1756563591057,3.402,4342.9,4342.8,0.7363]
[1756563591646,0.1942,4342.9,4342.8,0.7363]
[1756563592257,3.6882,4343.6,4343.5,0.5013]
[1756563592461,3.6882,4343.6,4343.5,0.235]
[1756563594057,3.6882,4343.6,4343.5,0.7363]
[1756563594260,0.4804,4343.6,4343.5,0.7363]
[1756563594753,3.494,4344.1,4343.5,0.4253]
[1756563595058,3.494,4344.1,4344.0,0.5013]
[1756563595262,3.494,4344.1,4344.0,0.7363]
[1756563595763,0.2862,4344.5,4344.1,0.311]
[1756563596060,0.4804,4344.2,4344.1,0.5013]
[1756563596659,0.1942,4344.2,4344.1,0.5013]
[1756563597753,3.2078,4344.6,4344.2,0.311]
[1756563597955,3.402,4344.6,4344.5,0.5013]
[1756563598155,3.402,4344.6,4344.5,0.7363]
[1756563598361,0.4804,4344.6,4344.5,0.7363]
[1756563598863,0.4804,4344.6,4344.5,41.2253]
[1756563600959,0.4804,4344.6,4344.5,41.035]
[1756563601155,0.4804,4344.6,4344.5,41.346]
[1756563602467,3.402,4345.2,4345.1,0.5013]
[1756563602767,3.2078,4345.8,4345.2,0.311]
[1756563602971,0.1942,4345.7,4345.6,0.1903]
[1756563603162,0.4804,4345.7,4345.6,0.235]
[1756563604062,0.2862,4346.1,4345.6,0.7363]
[1756563604260,3.2078,4346.3,4345.7,0.5013]
[1756563604565,0.4804,4345.8,4345.7,0.5013]
[1756563605161,0.4804,4345.8,4345.7,41.3013]
[1756563605365,0.2862,4346.2,4345.7,40.9903]
[1756563605558,0.4804,4346.2,4346.1,0.5013]
[1756563605768,0.4804,4346.2,4346.1,0.7363]
[1756563607567,0.1942,4346.2,4346.1,0.7363]
[1756563607869,3.2078,4346.3,4346.2,0.2857]
[1756563608069,0.485,4346.5,4346.4,0.4826]
[1756563609572,3.398,4347.0,4346.9,0.1969]
[1756563609872,3.398,4347.0,4346.9,0.4319]
[1756563610168,3.6928,4347.0,4346.9,0.7176]
[1756563610367,0.485,4347.0,4346.9,0.7176]
[1756563610871,0.485,4347.0,4346.9,0.235]
[1756563612268,7.2078,4347.0,4346.4,0.235]
[1756563612470,0.1902,4346.5,4346.4,0.235]
[1756563612667,0.485,4346.5,4346.4,0.235]
[1756563614566,0.485,4346.5,4345.8,0.2857]